bitfinex-derivatives/quotes_ETHF0:USTF0_20250627
["timestamp","ask_amount","ask_price","bid_price","bid_amount"]
[1750998713906,0.40783,2451.0,2450.8,9.35496948]
[1750998715011,0.40783,2451.0,2450.8,9.76281948]
[1750998715405,0.40783,2451.0,2450.8,9.35496948]
[1750998716321,0.40783,2450.9,2450.8,9.35496948]
[1750998718223,0.40782,2451.0,2450.8,9.76280948]
[1750998719422,0.6816,2451.1,2450.9,0.40783]
[1750998719629,1.08941,2451.1,2450.9,0.40783]
[1750998719928,0.40781,2451.0,2450.9,0.40783]
[1750998720128,0.40781,2451.0,2450.9,1.12543]
[1750998720427,0.6816,2451.1,2450.9,1.12543]
[1750998720428,1.08941,2451.1,2450.9,1.12543]
[1750998721129,0.6816,2451.1,2451.0,3.34777948]
[1750998721427,0.4078,2451.1,2451.0,3.34777948]
[1750998722021,0.40779,2451.2,2451.0,3.61561]
[1750998722223,0.6683,2451.3,2451.0,6.55557948]
[1750998722424,1.07607,2451.3,2451.2,2.93996948]
[1750998722733,2.06202279,2451.3,2451.2,2.93996948]
[1750998722931,1.65425279,2451.3,2451.2,3.34774948]
[1750998723122,2.06201279,2451.3,2451.2,2.93996948]
[1750998723323,0.40778,2451.2,2451.1,7.0999]
[1750998723623,0.40778,2451.2,2451.1,7.5077]
[1750998724333,1.07608,2451.3,2451.1,7.5077]
[1750998724730,0.40778,2451.2,2451.1,7.5077]
[1750998724930,0.40778,2451.2,2451.1,7.0999]
[1750998725132,1.07607,2451.3,2451.1,6.82079]
[1750998725431,1.07607,2451.3,2451.1,7.51379]
[1750998726132,0.6683,2451.3,2451.2,0.40778]
[1750998726323,0.98614295,2451.3,2451.2,3.34774948]
[1750998727731,1.10794,2451.5,2451.3,0.40776]
[1750998727935,1.10794,2451.5,2451.4,0.7033]
[1750998728233,2.09408934,2451.5,2451.4,0.7033]
[1750998728635,0.98614934,2451.5,2451.4,3.64326948]
[1750998728835,1.39387934,2451.5,2451.4,3.64326948]
[1750998729530,0.98614934,2451.5,2451.4,10.05626948]
[1750998729736,1.39387934,2451.5,2451.4,10.05626948]
[1750998731443,0.98614934,2451.5,2451.4,10.46401948]
[1750998731635,0.98614934,2451.5,2451.4,10.05626948]
[1750998732737,1.39387934,2451.5,2451.4,0.7033]
[1750998732946,1.39387934,2451.5,2451.4,6.412]
[1750998733237,0.40775,2451.4,2451.3,9.6198]
[1750998733430,1.39389934,2451.4,2451.3,9.6198]
[1750998733632,2.71229934,2451.4,2451.3,9.6198]
[1750998733839,0.98614934,2451.4,2451.3,9.6198]
[1750998734233,0.98614934,2451.4,2451.3,10.2936]
[1750998734841,0.98614934,2451.4,2451.3,10.70136]
[1750998735043,3.92611882,2451.4,2451.0,3.2078]
[1750998735246,3.11188642,2451.3,2451.1,6.412]
[1750998735452,0.4078,2451.2,2451.1,6.412]
[1750998735636,2.1253,2451.3,2451.1,6.412]
[1750998735948,1.10997,2451.3,2451.2,2.93996948]
[1750998736240,2.0965129,2451.3,2451.2,2.93996948]
[1750998736846,2.0965129,2451.3,2451.2,3.60536948]
[1750998737039,2.0965129,2451.3,2451.2,0.6654]
[1750998738447,0.40778,2451.2,2451.1,6.412]
[1750998738949,0.4078,2451.1,2451.0,6.14776948]
[1750998739246,0.4078,2451.1,2451.0,9.6198]
[1750998739436,0.4078,2451.1,2451.0,10.02761]
[1750998740144,0.4078,2451.1,2451.0,3.2078]
[1750998740338,2.93996948,2451.2,2450.8,6.412]
[1750998740654,2.93996948,2451.2,2450.7,3.2078]
[1750998740655,0.40785,2450.8,2450.7,3.2078]
[1750998743751,1.39793923,2450.8,2450.7,3.2078]
[1750998746345,0.40785,2450.8,2450.7,3.2078]
[1750998749048,1.79023,2450.9,2450.7,3.61566]
[1750998749244,1.07492,2451.0,2450.8,0.40784]
[1750998749444,1.07492,2451.0,2450.8,1.10924]
[1750998750048,0.40783,2450.9,2450.8,0.7014]
[1750998750652,1.07493,2451.0,2450.8,0.7014]
[1750998750953,1.07493,2451.0,2450.8,7.1114]
[1750998751854,0.6671,2451.0,2450.8,7.1114]
[1750998752252,0.6671,2451.0,2450.9,0.40783]
[1750998752452,1.65670736,2451.0,2450.9,0.40783]
[1750998752959,1.65670736,2451.0,2450.8,8.20034]
[1750998753258,0.40775,2451.5,2451.2,0.40777]
[1750998753463,2.08687517,2451.4,2451.2,3.34773948]
[1750998753658,0.98952517,2451.3,2451.2,3.34773948]
[1750998753957,1.39728517,2451.3,2451.2,0.666]
[1750998754550,1.39728517,2451.3,2451.1,6.41]
[1750998754753,0.98952517,2451.2,2451.1,6.8178]
[1750998755650,0.98952517,2451.2,2451.1,6.41]
[1750998756347,0.98952517,2451.2,2451.1,9.75776948]
[1750998756553,0.98910136,2451.3,2451.2,0.40778]
[1750998758362,0.98910136,2451.3,2451.2,1.09568]
[1750998759463,1.09735,2451.4,2451.2,1.09568]
[1750998759863,0.6896,2451.4,2451.2,1.09568]
[1750998760058,1.09736,2451.4,2451.2,1.09568]
[1750998762669,0.6896,2451.4,2451.2,1.09568]
[1750998763267,0.6896,2451.4,2451.3,0.40776]
[1750998763470,1.67849405,2451.4,2451.2,1.09567]
[1750998763667,0.6896,2451.4,2451.2,1.09567]
[1750998763866,1.09735,2451.4,2451.2,1.09567]
[1750998764166,0.6896,2451.4,2451.2,1.09567]
[1750998764863,1.09735,2451.4,2451.2,1.09567]
[1750998765270,0.40776,2451.3,2451.2,0.6879]
[1750998765464,0.40778,2451.2,2451.1,9.34996948]
[1750998765669,0.40778,2451.3,2451.1,9.75776948]
[1750998765867,1.77048,2451.3,2451.1,9.75776948]
[1750998766169,1.77047,2451.3,2451.1,6.81779]
[1750998766772,1.3627,2451.3,2451.2,0.40778]
[1750998766972,1.09736,2451.4,2451.2,0.40778]
[1750998767172,0.6896,2451.4,2451.1,9.34996948]
[1750998767471,0.6896,2451.4,2451.3,0.40776]
[1750998767665,1.67860543,2451.4,2451.3,0.40776]
[1750998767861,2.08635543,2451.4,2451.2,1.13697]
[1750998768063,1.09735,2451.4,2451.2,1.13697]
[1750998769069,0.6896,2451.4,2451.2,0.7292]
[1750998769267,0.40776,2451.3,2451.1,0.4078]
[1750998769574,0.40776,2451.3,2450.9,2.93996948]
[1750998769575,0.40776,2451.3,2450.9,3.66916948]
[1750998769872,0.40776,2451.3,2451.0,0.40781]
[1750998770670,0.40776,2451.3,2451.1,0.40779]
[1750998771070,1.09736,2451.4,2451.1,0.40779]
[1750998771270,0.40777,2451.3,2451.1,0.40779]
[1750998771471,0.6896,2451.4,2451.1,2.93996948]
[1750998771672,0.40775,2451.4,2451.2,0.40777]
[1750998773881,0.40774,2451.5,2451.2,0.40777]
[1750998774284,0.40775,2451.4,2451.1,11.07395948]
[1750998774479,0.40775,2451.4,2451.2,1.08378]
[1750998776283,0.40774,2451.5,2451.2,1.08378]
[1750998776579,0.40767,2451.9,2451.7,0.4077]
[1750998776784,1.39731118,2451.8,2451.6,0.40771]
[1750998776983,0.98963118,2451.7,2451.5,10.07346948]
[1750998777178,0.98963118,2451.6,2451.5,10.07346948]
[1750998777483,0.40767,2451.9,2451.5,10.07346948]
[1750998777484,1.71293118,2451.8,2451.5,10.07346948]
[1750998777687,0.98969908,2451.7,2451.5,10.07346948]
[1750998777879,0.4077,2451.7,2451.5,10.07346948]
[1750998778282,1.13099,2451.8,2451.5,10.07346948]
[1750998778475,1.13099,2451.8,2451.7,3.2078]
[1750998778681,2.12051138,2451.8,2451.7,3.2078]
[1750998779579,1.13099,2451.8,2451.7,3.2078]
[1750998780187,3.2078,2452.3,2451.7,3.2078]
[1750998780389,0.44354725,2452.5,2452.2,6.14776948]
[1750998780585,0.7156,2453.5,2452.4,5.87993896]
[1750998780781,0.98895976,2453.4,2453.3,2.93996948]
[1750998781082,0.98895976,2453.4,2453.1,3.2078]
[1750998781285,0.98895976,2453.3,2453.2,2.93996948]
[1750998781589,0.98895976,2453.3,2453.2,3.34741948]
[1750998781793,1.39638976,2453.3,2453.2,6.405]
[1750998782090,7.13672924,2453.3,2452.7,6.81506948]
[1750998782287,1.67415976,2453.2,2452.7,6.81506948]
[1750998782488,0.40751,2452.8,2452.7,10.2801]
[1750998782694,0.4075,2452.9,2452.7,10.2801]
[1750998782989,0.98895976,2452.8,2452.7,10.2801]
[1750998783489,1.8218,2452.9,2452.7,10.2801]
[1750998783694,1.8218,2452.9,2452.7,3.8751]
[1750998783992,1.4143,2452.9,2452.7,3.8751]
[1750998784186,1.4143,2452.9,2452.7,4.28263]
[1750998784387,1.4143,2452.9,2452.7,3.8751]
[1750998784688,0.40752,2452.8,2452.7,3.8751]
[1750998784883,0.7219,2452.8,2452.7,3.8751]
[1750998787394,0.7219,2452.8,2452.7,4.28263]
[1750998787995,0.7219,2452.8,2452.7,3.8751]
[1750998788795,0.40756,2452.5,2452.4,3.9329]
[1750998789004,0.40761,2452.2,2452.1,0.7165]
[1750998789195,2.51779,2452.4,2452.1,1.12413]
[1750998789492,1.3819,2452.3,2452.1,1.12412]
[1750998790295,1.3819,2452.3,2452.0,3.2078]
[1750998790501,1.7895,2452.3,2452.0,3.61543]
[1750998790799,0.40761,2452.2,2452.0,3.2078]
[1750998791000,1.74141,2452.2,2452.0,3.2078]
[1750998791206,1.3338,2452.2,2452.0,3.61544]
[1750998792197,1.3338,2452.2,2452.0,3.2078]
[1750998792401,1.3338,2452.2,2452.1,0.40763]
[1750998792802,0.4076,2452.3,2452.1,0.40763]
[1750998793496,1.3931,2452.3,2452.1,0.40763]
[1750998793906,1.3931,2452.3,2452.0,3.2078]
[1750998793907,1.80071,2452.3,2452.0,3.61544]
[1750998794296,1.80071,2452.3,2452.0,3.2078]
[1750998794496,0.40762,2452.2,2452.0,3.61544]
[1750998795004,0.40762,2452.2,2452.0,3.2078]
[1750998795205,0.40763,2452.1,2452.0,3.2078]
[1750998795403,0.40762,2452.2,2452.0,3.61545]
[1750998795802,0.40763,2452.1,2451.9,0.40766]
[1750998796103,1.3931,2452.1,2451.9,0.40766]
[1750998796403,0.6669,2452.0,2451.9,0.40766]
[1750998797805,0.6669,2452.0,2451.9,3.34762948]
[1750998799805,1.4262,2452.4,2451.9,2.93996948]
[1750998800008,0.6735,2452.4,2452.3,0.4076]
[1750998800509,0.4076,2452.3,2452.1,0.40762]
[1750998800812,1.7755,2452.3,2452.1,0.40762]
[1750998801901,0.6735,2452.4,2452.3,0.4076]
[1750998802700,0.6735,2452.4,2452.3,3.34756948]
[1750998802900,1.3679,2452.7,2452.6,0.40755]
[1750998803102,0.40751,2452.9,2452.7,0.40753]
[1750998803304,1.72781,2452.9,2452.7,0.40753]
[1750998803609,1.3203,2452.9,2452.7,0.40752]
[1750998804108,1.3203,2452.9,2452.8,0.40751]
[1750998804609,1.7278,2452.9,2452.7,0.40752]
[1750998805412,1.7278,2452.9,2452.6,0.40754]
[1750998805708,1.4271,2452.8,2452.7,0.40753]
[1750998805909,1.83462,2452.8,2452.6,0.40754]
[1750998806110,1.13663,2452.7,2452.4,0.6652]
[1750998806304,2.1562,2452.7,2452.5,0.40755]
[1750998807606,2.1562,2452.7,2452.6,0.40755]
[1750998807814,0.40751,2452.9,2452.4,3.60516948]
[1750998808013,2.35552416,2452.8,2452.6,0.40754]
[1750998808314,1.83462,2452.8,2452.6,0.40754]
[1750998809212,0.9288427,2452.7,2452.6,0.40754]
[1750998810712,1.13597,2453.1,2452.6,6.14776948]
[1750998810912,0.92919449,2453.0,2452.9,0.40749]
[1750998813112,0.92919449,2453.0,2452.8,0.4075]
[1750998813308,0.92919449,2453.0,2452.6,6.14776948]
[1750998813309,0.40752,2452.8,2452.6,3.61534]
[1750998813613,3.34748948,2452.8,2452.6,3.61535]
[1750998813813,0.673,2452.7,2452.6,3.61535]
[1750998817917,0.673,2452.7,2452.6,3.2078]
[1750998818323,1.08053,2452.7,2452.6,3.2078]
[1750998818512,1.08053,2452.7,2452.3,2.42715233]
[1750998818513,0.40758,2452.4,2452.3,2.42715233]
[1750998818713,0.4076,2452.3,2452.1,2.83478233]
[1750998818918,2.0154,2452.3,2452.1,2.42715233]
[1750998819113,2.423,2452.3,2452.1,2.83478233]
[1750998819317,2.0154,2452.3,2452.2,0.40761]
[1750998819516,1.0997,2452.3,2452.1,5.77475181]
[1750998820119,0.40761,2452.2,2452.0,3.25614743]
[1750998820321,0.40763,2452.1,2452.0,3.25614743]
[1750998821218,0.40765,2452.0,2451.9,7.18874743]
[1750998821411,0.40765,2452.0,2451.9,3.2078]
[1750998821617,0.40768,2451.8,2451.7,4.19650743]
[1750998821920,0.40768,2451.8,2451.7,0.94036]
[1750998822319,0.663,2451.8,2451.7,0.94036]
[1750998822915,1.07068,2451.8,2451.7,0.94036]
[1750998826028,4.27848,2451.8,2451.7,0.94036]
[1750998826219,0.663,2451.8,2451.7,0.94036]
[1750998826420,0.40768,2451.8,2451.7,0.94036]
[1750998828429,1.84088,2451.8,2451.7,0.94036]
[1750998829540,0.40767,2451.9,2451.7,0.94036]
[1750998830040,0.40767,2451.9,2451.7,1.34806]
[1750998830434,0.40768,2451.8,2451.7,0.94036]
[1750998832841,6.55544948,2451.8,2451.7,0.94036]
[1750998833437,11.55544948,2451.8,2451.7,0.94036]
[1750998833630,12.27174948,2451.8,2451.7,0.94036]
[1750998833827,4.33178,2451.8,2451.7,0.94036]
[1750998834026,7.27174948,2451.8,2451.7,0.94036]
[1750998842449,3.61548,2451.8,2451.7,0.94036]
[1750998843152,5.06928,2451.8,2451.7,0.94036]
[1750998847356,5.06928,2451.8,2451.2,0.6677]
[1750998847357,0.40776,2451.3,2451.2,0.6677]
[1750998847658,9.6616,2451.8,2451.1,5.95068972]
[1750998847659,0.40778,2451.2,2451.1,2.33509972]
[1750998847859,0.40778,2451.2,2451.1,0.7193]
[1750998848254,0.40778,2451.2,2451.1,2.33509972]
[1750998848850,0.40776,2451.4,2451.1,5.2750692]
[1750998849157,0.40776,2451.4,2451.2,1.3496]
[1750998849659,0.40776,2451.4,2451.3,0.7144]
[1750998850050,0.6828,2451.7,2451.3,3.65436948]
[1750998850250,0.40774,2451.5,2451.3,5.6779292]
[1750998850450,3.2078,2451.8,2451.4,1.75734]
[1750998850650,0.40771,2451.6,2451.5,4.28956948]
[1750998850857,0.40771,2451.6,2451.5,1.3496]
[1750998852856,0.40773,2451.5,2451.4,1.61579972]
[1750998853264,0.40773,2451.5,2451.3,6.489939]
[1750998853464,0.40773,2451.5,2451.3,7.872739]
[1750998854063,3.2078,2451.8,2451.3,7.872739]
[1750998854358,0.40771,2451.6,2451.5,1.62055713]
[1750998858668,0.93207316,2451.6,2451.3,7.464989]
[1750998858864,4.6334,2451.8,2451.3,7.464989]
[1750998859064,0.40775,2451.4,2451.3,7.464989]
[1750998859559,0.40774,2451.5,2451.3,7.464989]
[1750998859763,4.6334,2451.8,2451.3,7.464989]
[1750998859764,0.40775,2451.4,2451.3,7.464989]
[1750998861273,0.40775,2451.4,2451.3,5.03716948]
[1750998861675,0.40775,2451.5,2451.3,5.03716948]
[1750998861879,1.339999,2451.4,2451.3,5.03716948]
[1750998864086,0.932249,2451.4,2451.3,5.44492948]
[1750998864385,0.40762,2452.2,2452.0,0.40765]
[1750998864582,0.40762,2452.2,2452.1,4.30856948]
[1750998864783,0.40765,2452.0,2451.9,2.43016526]
[1750998865083,3.87170682,2452.2,2451.8,2.43016526]
[1750998865084,0.40766,2451.9,2451.8,2.43016526]
[1750998865285,0.40766,2451.9,2451.7,4.15496526]
[1750998865688,0.40768,2451.8,2451.7,2.43016526]
[1750998865880,0.4077,2451.7,2451.6,2.43016526]
[1750998866089,0.40771,2451.6,2451.5,3.13536526]
[1750998866286,0.40773,2451.5,2451.4,2.43016526]
[1750998867591,0.40775,2451.4,2451.3,6.34316526]
[1750998868391,0.40775,2451.4,2451.3,3.913]
[1750998868791,0.40775,2451.4,2451.3,3.13536526]
[1750998868993,0.40775,2451.4,2451.3,0.7052]
[1750998869894,0.40776,2451.3,2451.2,2.43016526]
[1750998870693,0.40778,2451.2,2451.1,3.15216526]
[1750998871089,0.40778,2451.2,2451.1,0.722]
[1750998872396,0.4078,2451.1,2451.0,3.15196526]
[1750998872598,0.4078,2451.1,2451.0,2.43016526]
[1750998873099,0.40781,2451.0,2450.9,2.43016526]
[1750998873598,0.40783,2450.9,2450.8,8.87516526]
[1750998874392,0.40783,2450.9,2450.8,6.445]
[1750998876299,0.40785,2450.8,2450.7,4.5326]
[1750998876795,0.40785,2450.8,2450.7,3.2078]
[1750998876993,3.34781948,2450.8,2450.5,2.43016526]
[1750998877196,0.40788,2450.6,2450.4,5.63796526]
[1750998877794,0.40789,2450.6,2450.4,5.63796526]
[1750998878000,3.883,2450.9,2450.4,5.63796526]
[1750998878200,0.40789,2450.6,2450.4,6.55567948]
[1750998878500,0.40788,2450.6,2450.4,6.55567948]
[1750998878701,0.4079,2450.5,2450.4,6.14776948]
[1750998879289,0.4079,2450.5,2450.4,3.2078]
[1750998880294,0.40793,2450.3,2450.2,10.23546526]
[1750998880503,0.6977,2450.4,2450.1,5.63796526]
[1750998880698,0.40794,2450.3,2450.1,5.63796526]
[1750998881803,0.40794,2450.3,2450.1,6.04592526]
[1750998882307,1.10562,2450.4,2450.2,0.40794]
[1750998884006,0.40794,2450.3,2450.1,6.55571948]
[1750998884807,1.10562,2450.4,2450.2,0.40794]
[1750998885409,0.6977,2450.4,2450.3,0.40793]
[1750998889713,1.10562,2450.4,2450.2,0.40794]
[1750998890012,1.77223,2450.3,2450.1,3.61575]
[1750998890712,1.77223,2450.3,2450.2,0.40795]
[1750998890912,1.10562,2450.4,2450.1,3.2078]
[1750998891205,0.6977,2450.4,2450.1,3.2078]
[1750998891410,0.40794,2450.3,2450.1,3.2078]
[1750998891816,0.40794,2450.3,2450.1,3.61575]
[1750998892113,0.6977,2450.4,2450.1,3.2078]
[1750998892412,0.6977,2450.4,2450.0,0.6856]
[1750998892413,0.40796,2450.1,2450.0,0.6856]
[1750998892813,0.40796,2450.1,2450.0,1.09358]
[1750998893015,4.26546948,2450.3,2449.8,4.20219194]
[1750998893213,0.6712,2450.0,2449.8,3.8733]
[1750998893810,0.408,2449.9,2449.8,4.28131]
[1750998894012,0.408,2449.9,2449.8,3.8733]
[1750998895018,0.408,2449.9,2449.8,4.28131]
[1750998895209,1.07919,2450.0,2449.8,4.2813]
[1750998895513,1.07919,2450.0,2449.8,4.28131]
[1750998895708,0.6712,2450.0,2449.8,3.8733]
[1750998895909,1.07918,2450.0,2449.8,4.2813]
[1750998896412,1.07918,2450.0,2449.9,0.408]
[1750998896609,1.07918,2450.0,2449.9,3.34796948]
[1750998897414,0.6712,2450.0,2449.9,3.34796948]
[1750998897716,1.07918,2450.0,2449.9,2.93996948]
[1750998897908,3.2078,2450.3,2449.9,2.93996948]
[1750998898115,0.40793,2450.4,2450.2,0.40794]
[1750998898318,0.40793,2450.4,2450.3,3.60516948]
[1750998899513,0.4079,2450.5,2450.3,4.01308948]
[1750998899710,3.2078,2450.6,2450.5,0.4079]
[1750998899913,0.40785,2450.8,2450.6,0.40788]
[1750998900315,0.40787,2450.7,2450.5,3.34785948]
[1750998900514,0.40786,2450.8,2450.5,2.93996948]
[1750998900719,1.07234,2450.9,2450.7,3.34782948]
[1750998901315,3.2078,2451.2,2450.7,2.93996948]
[1750998901520,1.33886273,2451.1,2450.9,3.34778948]
[1750998901820,0.4078,2451.1,2450.9,3.34778948]
[1750998902818,3.8723,2451.2,2450.8,1.3579]
[1750998903120,2.93996948,2450.9,2450.4,7.7952]
[1750998903318,2.93996948,2450.9,2450.4,9.1635]
[1750998903818,0.40785,2450.8,2450.5,0.4079]
[1750998904719,0.40787,2450.7,2450.5,0.4079]
[1750998905427,0.40786,2450.8,2450.5,3.34786948]
[1750998905725,0.4078,2451.1,2450.8,0.40784]
[1750998905915,0.40781,2451.0,2450.9,0.7191]
[1750998906117,0.40781,2451.0,2450.7,0.40786]
[1750998906322,0.40781,2451.1,2450.8,0.40784]
[1750998906521,2.0652,2451.2,2451.0,2.93996948]
[1750998906718,0.40777,2451.3,2451.0,6.14776948]
[1750998906920,0.931973,2451.2,2451.1,1.4408]
[1750998907521,0.40777,2451.3,2451.1,1.8486]
[1750998907825,0.6655,2451.4,2451.1,1.4408]
[1750998908025,1.3390747,2451.3,2451.1,1.4408]
[1750998908217,0.40777,2451.3,2451.1,1.4408]
[1750998909427,0.40778,2451.2,2451.1,1.4408]
[1750998909823,0.4078,2451.1,2451.0,3.2078]
[1750998910027,0.4078,2451.1,2450.9,6.427]
[1750998910927,0.40781,2451.0,2450.9,6.427]
[1750998911125,0.7172,2451.0,2450.9,6.427]
[1750998911929,1.12501,2451.0,2450.9,6.427]
[1750998912226,0.7172,2451.0,2450.9,6.427]
[1750998912522,0.7172,2451.0,2450.9,6.83483]
[1750998912729,1.11357,2451.3,2451.0,0.40781]
[1750998913826,0.40778,2451.2,2450.9,9.77478948]
[1750998914332,0.40778,2451.3,2451.0,0.40781]
[1750998914630,0.40778,2451.3,2451.0,1.10571]
[1750998914930,0.4078,2451.1,2450.9,9.36696948]
[1750998915130,0.4078,2451.1,2450.9,9.77479948]
[1750998916232,0.4078,2451.1,2450.9,9.36696948]
[1750998916429,0.4078,2451.1,2450.9,9.77478948]
[1750998919332,0.40779,2451.2,2450.9,9.77478948]
[1750998919832,1.82017,2451.3,2451.0,0.40781]
[1750998920032,1.82017,2451.3,2450.9,9.77478948]
[1750998920033,0.40778,2451.2,2450.9,9.77478948]
[1750998920433,0.40778,2451.2,2451.0,0.40781]
[1750998920928,0.40778,2451.2,2450.9,9.77478948]
[1750998921134,0.4078,2451.1,2450.9,9.77478948]
[1750998921435,0.40779,2451.2,2450.9,9.77478948]
[1750998921630,0.4078,2451.1,2450.9,9.77478948]
[1750998922232,0.40779,2451.2,2450.9,9.77478948]
[1750998922431,0.40779,2451.2,2451.0,0.40781]
[1750998922733,0.4078,2451.1,2450.9,9.77478948]
[1750998925435,0.4078,2451.2,2451.0,0.40781]
[1750998927829,1.13296,2451.4,2451.2,0.40778]
[1750998928029,1.34209173,2451.3,2451.1,3.34775948]
[1750998928225,0.40778,2451.2,2451.1,3.59836948]
[1750998928436,0.40778,2451.2,2451.1,0.6584]
[1750998929040,0.40777,2451.3,2451.1,1.0662]
[1750998929239,0.93541316,2451.2,2451.1,1.0662]
[1750998929538,0.93541316,2451.2,2451.1,0.6584]
[1750998929932,0.93541316,2451.2,2451.1,1.0662]
[1750998931044,1.34319316,2451.2,2451.1,0.6584]
[1750998933332,0.4078,2451.1,2450.9,0.40782]
[1750998933737,0.40779,2451.2,2450.9,2.93996948]
[1750998933942,1.3999,2451.3,2450.9,2.93996948]
[1750998933943,0.7252,2451.4,2451.2,0.40778]
[1750998934144,0.9356891,2451.3,2451.2,0.40778]
[1750998934345,0.9356891,2451.3,2451.2,1.80258]
[1750998935144,1.3434491,2451.3,2451.2,1.80258]
[1750998935339,0.9356891,2451.3,2451.2,1.80258]
[1750998935541,0.9356891,2451.3,2451.2,5.01038]
[1750998935748,0.40771,2451.7,2451.4,0.40774]
[1750998935945,0.93606711,2451.6,2451.5,0.40773]
[1750998936142,0.93606711,2451.6,2451.4,2.93996948]
[1750998936443,0.40771,2451.7,2451.5,3.61553]
[1750998936646,0.93582632,2451.6,2451.5,3.61553]
[1750998938047,0.40771,2451.7,2451.5,3.61553]
[1750998938950,0.6877,2451.9,2451.5,3.61553]
[1750998938951,0.40769,2451.8,2451.5,3.61553]
[1750998939251,0.40769,2451.8,2451.6,1.06591]
[1750998939951,0.40769,2451.8,2451.6,0.6582]
[1750998940251,0.40769,2451.8,2451.6,1.06591]
[1750998940848,0.40769,2451.8,2451.6,0.6582]
[1750998941053,0.4077,2451.7,2451.6,0.6582]
[1750998942653,2.42744494,2452.6,2451.7,1.01925]
[1750998942954,0.7013,2452.9,2452.5,2.93996948]
[1750998943153,0.7013,2452.9,2452.8,3.34748948]
[1750998943756,0.7013,2452.9,2452.6,4.31446948]
[1750998944053,1.10881,2452.9,2452.6,8.20205]
[1750998944257,2.1152,2452.9,2452.7,0.40752]
[1750998944753,0.7013,2452.9,2452.7,0.40752]
[1750998944955,0.7013,2452.9,2452.6,10.73446948]
[1750998944956,0.7013,2452.9,2452.8,0.40752]
[1750998946355,0.7013,2452.9,2452.7,0.40752]
[1750998947556,0.7013,2452.9,2452.8,0.40752]
[1750998947852,0.7013,2452.9,2452.7,0.40752]
[1750998948048,1.1088,2452.9,2452.6,8.20204]
[1750998948257,0.7013,2452.9,2452.7,0.40753]
[1750998949555,1.1088,2452.9,2452.6,8.20204]
[1750998949766,0.7013,2452.9,2452.6,7.7925]
[1750998950055,1.10881,2452.9,2452.7,0.40753]
[1750998950247,0.7013,2452.9,2452.7,0.40753]
[1750998950855,0.7013,2452.9,2452.8,0.40752]
[1750998951153,3.2078,2453.0,2452.8,0.40751]
[1750998951355,3.61528,2453.0,2452.8,5.61570255]
[1750998951559,0.6795,2453.2,2452.9,3.2078]
[1750998951856,1.08696,2453.2,2452.9,3.2078]
[1750998952058,1.08695,2453.2,2453.0,0.40747]
[1750998952258,0.6795,2453.2,2452.9,3.2078]
[1750998952554,0.6795,2453.2,2453.0,0.40747]
[1750998952759,0.6795,2453.2,2453.1,0.40747]
[1750998953858,3.2078,2453.7,2453.1,10.61570255]
[1750998954153,1.08426,2453.8,2453.6,0.40737]
[1750998954361,0.6769,2453.8,2453.7,0.40737]
[1750998954563,1.08425,2453.8,2453.5,6.417]
[1750998954754,1.08425,2453.8,2453.5,6.82439]
[1750998955163,1.08425,2453.8,2453.6,0.40738]
[1750998955552,0.6769,2453.8,2453.6,0.40738]
[1750998955752,0.6769,2453.8,2453.5,6.82439]
[1750998956071,0.40739,2453.6,2453.5,6.416]
[1750998957165,0.4074,2453.5,2453.3,3.2078]
[1750998957355,0.4074,2453.5,2453.4,6.416]
[1750998957864,1.4326,2453.7,2453.4,6.416]
[1750998958072,0.40738,2453.6,2453.4,6.416]
[1750998958362,0.4074,2453.5,2453.4,6.416]
[1750998959155,0.4074,2453.5,2453.3,3.2078]
[1750998959363,3.2078,2453.7,2453.1,6.82346]
[1750998959662,0.40744,2453.3,2453.1,6.416]
[1750998959859,0.40745,2453.2,2453.1,6.416]
[1750998960251,0.40747,2453.1,2452.9,3.2078]
[1750998960450,0.6735,2453.3,2452.6,11.61110255]
[1750998960762,0.40747,2453.1,2452.8,0.40751]
[1750998960962,1.4104,2453.2,2452.9,3.2078]
[1750998961255,1.81786,2453.2,2452.9,3.61529]
[1750998961458,0.40748,2453.0,2452.9,3.2078]
[1750998961758,3.2078,2453.1,2452.7,6.472]
[1750998961959,0.40752,2452.8,2452.7,6.472]
[1750998962163,1.81791,2452.9,2452.7,6.472]
[1750998962463,0.6956,2452.8,2452.7,6.472]
[1750998962661,0.6956,2452.8,2452.7,6.87953]
[1750998962863,0.6956,2452.8,2452.7,6.472]
[1750998963156,0.6956,2452.8,2452.7,6.87953]
[1750998963365,0.40749,2453.0,2452.7,6.87953]
[1750998963667,0.40749,2453.0,2452.8,3.2078]
[1750998964559,0.40749,2453.0,2452.8,3.61531]
[1750998965159,0.40748,2453.1,2452.9,0.4075]
[1750998965359,0.6956,2453.2,2452.8,3.61531]
[1750998965663,0.6956,2453.2,2452.9,0.4075]
[1750998965964,0.40748,2453.0,2452.8,3.61531]
[1750998967159,0.40748,2453.1,2452.9,0.4075]
[1750998967358,2.0482,2453.2,2452.9,0.4075]
[1750998967564,0.40747,2453.1,2452.9,0.4075]
[1750998967766,0.40747,2453.1,2452.8,3.61531]
[1750998968660,0.40748,2453.0,2452.8,3.61531]
[1750998969067,0.40748,2453.0,2452.8,3.2078]
[1750998969264,0.40748,2453.0,2452.8,3.61531]
[1750998970663,0.40747,2453.1,2452.8,3.61531]
[1750998970966,0.40749,2453.0,2452.8,3.2078]
[1750998971168,0.40749,2453.0,2452.8,3.61531]
[1750998971962,1.73808,2453.1,2452.8,3.61531]
[1750998972367,0.40749,2453.0,2452.8,3.61531]
[1750998973773,0.40749,2453.0,2452.8,3.2078]
[1750998973974,0.40749,2453.0,2452.8,3.61531]
[1750998974267,0.40749,2453.0,2452.8,6.53989875]
[1750998975667,0.4075,2452.9,2452.8,6.13238875]